bitfinex/quotes_ETHUSD_20250913
["timestamp","ask_amount","ask_price","bid_price","bid_amount"]
[1757760308501,13.24895952,4713.4,4713.3,55.26770545]
[1757760308880,12.77317719,4713.4,4713.3,55.26770545]
[1757760309204,12.77317719,4713.4,4713.3,60.16971009]
[1757760310403,12.77317719,4713.4,4713.3,55.26770545]
[1757760312504,12.77317719,4713.4,4713.3,55.37330545]
[1757760315289,12.77317719,4713.4,4713.3,55.10754793]
[1757760319122,12.77317719,4713.4,4713.3,25.10754793]
[1757760319322,12.77317719,4713.4,4713.3,55.10754793]
[1757760319703,12.77317719,4713.4,4713.3,54.09854793]
[1757760320226,12.77317719,4713.4,4713.3,24.09854793]
[1757760320634,12.77317719,4713.4,4713.3,54.09854793]
[1757760320832,12.77317719,4713.4,4713.3,24.09854793]
[1757760321136,12.77317719,4713.4,4713.3,54.09854793]
[1757760323116,0.13695141,4717.6,4716.1,1.315414]
[1757760323318,0.02116552,4717.5,4716.3,16.929617]
[1757760323639,0.02116552,4717.5,4716.4,35.14327501]
[1757760323820,0.4327,4717.4,4716.5,30.0]
[1757760324015,0.297,4716.6,4716.5,30.0]
[1757760324231,0.7297,4716.6,4716.5,6.708]
[1757760324635,0.7297,4716.6,4716.5,36.708]
[1757760324941,0.7297,4716.6,4716.5,40.237]
[1757760325140,1.897,4716.6,4716.5,40.237]
[1757760325443,2.0867,4716.6,4716.5,43.237]
[1757760326017,2.0867,4716.6,4716.5,39.708]
[1757760326241,2.0867,4716.6,4716.5,43.237]
[1757760327130,2.0867,4716.6,4716.5,39.708]
[1757760327334,2.0867,4716.6,4716.5,43.236]
[1757760327531,2.0867,4716.6,4716.5,40.236]
[1757760328060,2.0867,4716.6,4716.5,43.236]
[1757760329923,2.10786552,4716.6,4716.5,43.236]
[1757760331258,2.10786552,4716.6,4716.5,43.237]
[1757760332022,2.10786552,4716.6,4716.5,39.708]
[1757760332023,4.33686552,4716.6,4716.5,39.708]
[1757760332228,4.33686552,4716.6,4716.5,1.626]
[1757760332427,4.9727922,4716.6,4716.5,4.403]
[1757760332628,2.72262668,4716.6,4716.5,4.403]
[1757760332830,2.10786552,4716.6,4716.5,4.403]
[1757760337674,2.0867,4716.6,4716.5,4.403]
[1757760338040,2.10986552,4716.6,4716.5,7.403]
[1757760339550,2.10706552,4716.6,4716.5,7.403]
[1757760340087,2.0859,4716.6,4716.5,7.403]
[1757760340567,2.0859,4716.6,4716.5,37.403]
[1757760342978,2.0859,4716.6,4716.5,8.158]
[1757760346405,2.0859,4716.6,4716.5,8.157]
[1757760347174,4.3149,4716.6,4716.5,8.157]
[1757760349902,4.33606552,4716.6,4716.5,8.157]
[1757760352280,4.33606552,4716.6,4716.5,4.626]
[1757760352611,4.33606552,4716.6,4716.5,8.156]
[1757760354419,4.33606552,4716.6,4716.5,5.156]
[1757760355855,4.33606552,4716.6,4716.5,5.157]
[1757760356075,4.33606552,4716.6,4716.5,1.627]
[1757760356357,4.33606552,4716.6,4716.5,5.156]
[1757760356559,4.33606552,4716.6,4716.5,1.627]
[1757760356859,4.33606552,4716.6,4716.5,5.156]
[1757760357256,4.33606552,4716.6,4716.5,1.627]
[1757760357470,4.33606552,4716.6,4716.5,5.156]
[1757760360465,3.16946552,4716.6,4716.5,5.156]
[1757760361353,4.36716552,4716.6,4716.5,5.156]
[1757760361652,4.36716552,4716.6,4716.5,1.627]
[1757760361880,5.15916552,4716.6,4716.5,1.627]
[1757760362080,6.138,4716.6,4716.5,3.529]
[1757760362385,6.138,4716.6,4716.5,0.001]
[1757760363562,6.77405746,4716.6,4716.5,0.001]
[1757760373999,9.10335746,4716.6,4716.5,0.001]
[1757760377002,10.23665746,4716.6,4716.5,0.001]
[1757760379906,8.67275746,4716.6,4716.5,0.001]
[1757760380887,9.13725746,4716.6,4716.5,0.001]
[1757760382306,10.27055746,4716.6,4716.5,0.001]
[1757760389041,15.70854842,4716.6,4716.5,0.001]
[1757760390506,19.16280805,4716.6,4716.5,0.001]
[1757760390734,19.73082221,4716.6,4716.5,0.001]
[1757760390934,19.16280805,4716.6,4716.5,0.001]
[1757760391233,21.19034851,4716.6,4716.5,0.001]
[1757760391939,20.43380805,4716.6,4716.5,0.001]
[1757760392326,21.18941666,4716.6,4716.5,0.001]
[1757760393203,20.43380805,4716.6,4716.5,0.001]
[1757760394251,9.14139608,4716.1,4716.0,0.001]
[1757760394425,9.14139608,4716.1,4715.5,0.001]
[1757760394426,9.45944057,4715.6,4715.5,0.001]
[1757760394605,13.28474057,4715.6,4715.5,0.001]
[1757760394805,15.3356318,4715.6,4715.5,0.001]
[1757760394999,15.97207248,4715.6,4715.5,0.001]
[1757760397243,15.51898125,4715.6,4715.5,0.001]
[1757760397444,17.28293447,4715.6,4715.5,0.001]
[1757760401563,20.28293447,4715.6,4715.5,0.001]
[1757760403880,16.75493447,4715.6,4715.5,0.001]
[1757760404029,10.04731481,4715.6,4715.5,0.001]
[1757760404230,13.27701481,4715.6,4715.5,0.2895]
[1757760404451,14.57431481,4715.6,4715.5,0.001]
[1757760404672,15.83081481,4715.6,4715.5,0.001]
[1757760404961,15.03881481,4715.6,4715.5,0.001]
[1757760405129,14.36631481,4715.6,4715.5,0.001]
[1757760405336,15.36631481,4715.6,4715.5,0.001]
[1757760405744,10.83931481,4715.6,4715.5,0.001]
[1757760406065,15.36631481,4715.6,4715.5,0.001]
[1757760406245,16.51041481,4715.6,4715.5,0.001]
[1757760406443,16.95161481,4715.6,4715.5,0.001]
[1757760412174,17.40325428,4715.6,4715.5,0.001]
[1757760416786,15.52065428,4715.6,4715.5,0.001]
[1757760417149,11.99365428,4715.6,4715.5,0.001]
[1757760417350,15.52065428,4715.6,4715.5,0.001]
[1757760417573,15.52065428,4715.6,4715.5,0.3106]
[1757760417946,11.99365428,4715.6,4715.5,0.3106]
[1757760418146,18.83847394,4715.6,4715.5,0.001]
[1757760418350,19.12477394,4715.6,4715.5,0.001]
[1757760419189,19.69080934,4715.6,4715.5,0.001]
[1757760419373,19.12477394,4715.6,4715.5,0.001]
[1757760419688,19.69080934,4715.6,4715.5,0.001]
[1757760420058,21.23470934,4715.6,4715.5,0.001]
[1757760420263,20.66867394,4715.6,4715.5,0.001]
[1757760423193,9.14184579,4715.1,4715.0,0.001]
[1757760423349,18.06630492,4715.1,4715.0,0.001]
[1757760423549,18.35260492,4715.1,4715.0,0.001]
[1757760423989,18.79250492,4715.1,4715.0,0.001]
[1757760427293,15.18838526,4715.1,4715.0,0.3106]
[1757760427491,20.25973714,4715.1,4715.0,0.3106]
[1757760427983,20.97733714,4715.1,4715.0,0.001]
[1757760429263,6.91307071,4714.6,4714.5,0.001]
[1757760429476,17.00647767,4714.6,4714.5,0.001]
[1757760429683,19.48803089,4714.6,4714.5,0.001]
[1757760430082,21.23722419,4714.6,4714.5,0.001]
[1757760430491,21.42488497,4714.6,4714.5,0.001]
[1757760431001,6.14261072,4713.4,4713.1,0.4409]
[1757760431175,15.89369062,4713.4,4713.1,0.4409]
[1757760431376,15.89369062,4713.4,4713.3,0.3106]
[1757760432409,16.5304028,4713.4,4713.3,0.3106]
[1757760433323,16.5304028,4713.4,4713.3,1.8949]
[1757760433524,16.5314028,4713.4,4713.3,1.8949]
[1757760434392,16.8177028,4713.4,4713.3,0.001]
[1757760434786,17.2490028,4713.4,4713.3,0.001]
[1757760436229,17.6723367,4713.4,4713.3,0.001]
[1757760436726,17.2410367,4713.4,4713.3,0.001]
[1757760437823,16.9547367,4713.4,4713.3,0.001]
[1757760437991,16.9547367,4713.4,4713.3,0.3062]
[1757760439226,16.50309723,4713.4,4713.3,1.8811]
[1757760440822,16.50309723,4713.4,4713.3,0.3062]
[1757760443553,16.50209723,4713.4,4713.3,1.8811]
[1757760444452,16.50209723,4713.4,4713.3,0.3062]
[1757760445521,16.50209723,4713.4,4713.3,0.001]
[1757760446160,16.80239723,4713.4,4713.3,0.001]
[1757760447625,17.26809723,4713.4,4713.3,0.001]
[1757760448527,19.9895814,4713.4,4713.3,0.001]
[1757760448933,19.2235814,4713.4,4713.3,0.001]
[1757760449664,19.5238814,4713.4,4713.3,0.001]
[1757760450652,19.2235814,4713.4,4713.3,0.001]
[1757760451459,19.67674083,4713.4,4713.3,0.3062]
[1757760452365,19.67674083,4713.4,4713.3,0.001]
[1757760452847,19.97704083,4713.4,4713.3,0.001]
[1757760454648,19.67674083,4713.4,4713.3,0.001]
[1757760457075,13.42425666,4713.4,4713.3,1.8811]
[1757760457273,19.67474083,4713.4,4713.3,0.3062]
[1757760459957,19.67474083,4713.4,4713.3,0.001]
[1757760460358,20.24246227,4713.4,4713.3,0.001]
[1757760461988,20.54276227,4713.4,4713.3,0.001]
[1757760462193,20.24246227,4713.4,4713.3,0.3062]
[1757760462359,20.24146227,4713.4,4713.3,1.8811]
[1757760465881,16.71346227,4713.4,4713.3,1.8811]
[1757760466066,20.24046227,4713.4,4713.3,1.8811]
[1757760467166,16.14574083,4713.4,4713.3,1.8811]
[1757760467366,16.95125666,4713.4,4713.3,1.4359]
[1757760467595,19.67274083,4713.4,4713.3,1.8656]
[1757760467915,16.14574083,4713.4,4713.3,1.8656]
[1757760468111,19.67274083,4713.4,4713.3,0.3062]
[1757760468283,19.67274083,4713.4,4713.3,0.001]
[1757760469306,19.67274083,4713.4,4713.3,0.3035]
[1757760470485,19.98454083,4713.4,4713.3,0.001]
[1757760471985,19.67274083,4713.4,4713.3,0.001]
[1757760474304,16.14574083,4713.4,4713.3,1.3223]
[1757760474469,19.67274083,4713.4,4713.3,1.7558]
[1757760474672,19.67274083,4713.4,4713.3,0.001]
[1757760474673,19.98454083,4713.4,4713.3,0.001]
[1757760475077,19.67274083,4713.4,4713.3,0.001]
[1757760476328,19.98454083,4713.4,4713.3,0.001]
[1757760478788,21.01406213,4713.4,4713.3,0.001]
[1757760479105,21.50324083,4713.4,4713.3,0.001]
[1757760480820,20.44524083,4713.4,4713.3,0.001]
[1757760481021,19.98454083,4713.4,4713.3,0.001]
[1757760481187,21.04254083,4713.4,4713.3,0.001]
[1757760481392,21.50324083,4713.4,4713.3,0.001]
[1757760482011,22.26020276,4713.4,4713.3,0.001]
[1757760482229,21.50324083,4713.4,4713.3,0.001]
[1757760484836,20.44524083,4713.4,4713.3,0.001]
[1757760485300,19.98454083,4713.4,4713.3,0.001]
[1757760485629,17.26305666,4713.4,4713.3,0.001]
[1757760485865,16.14574083,4713.4,4713.3,0.3035]
[1757760486039,19.67174083,4713.4,4713.3,1.7558]
[1757760486202,19.98354083,4713.4,4713.3,0.001]
[1757760488742,21.50224083,4713.4,4713.3,0.001]
[1757760492656,20.44424083,4713.4,4713.3,0.001]
[1757760493327,19.98354083,4713.4,4713.3,0.001]
[1757760493964,16.95025666,4713.4,4713.3,1.3223]
[1757760494128,19.67174083,4713.4,4713.3,1.7558]
[1757760494469,19.67174083,4713.4,4713.3,1.3223]
[1757760494624,19.67174083,4713.4,4713.3,0.3035]
[1757760497729,19.67174083,4713.4,4713.3,0.001]
[1757760498760,19.67174083,4713.4,4713.3,0.3066]
[1757760501158,19.67174083,4713.4,4713.3,0.001]
[1757760501159,19.97434083,4713.4,4713.3,0.001]
[1757760501332,20.42314083,4713.4,4713.3,0.001]
[1757760501659,21.52424083,4713.4,4713.3,0.001]
[1757760502237,21.0710814,4713.4,4713.3,0.001]
[1757760502443,21.52606685,4713.4,4713.3,0.001]
[1757760502932,20.42496685,4713.4,4713.3,0.001]
[1757760505600,21.18192878,4713.4,4713.3,0.001]
[1757760507487,22.28302878,4713.4,4713.3,0.001]
[1757760508493,22.88576695,4713.4,4713.3,0.001]
[1757760512000,21.78466695,4713.4,4713.3,0.001]
[1757760513211,22.88576695,4713.4,4713.3,0.001]
[1757760515585,21.78466695,4713.4,4713.3,0.001]
[1757760516075,21.33586695,4713.4,4713.3,0.001]
[1757760516474,21.03326695,4713.4,4713.3,0.001]
[1757760516675,21.03326695,4713.4,4713.3,0.3066]
[1757760516871,17.70904461,4713.4,4713.3,0.3066]
[1757760517313,16.95208268,4713.4,4713.3,0.3066]
[1757760518392,16.95208268,4713.4,4713.3,1.8083]
[1757760518597,13.42608268,4713.4,4713.3,1.8083]
[1757760519119,16.95208268,4713.4,4713.3,1.8083]
[1757760520791,15.95208268,4713.4,4713.3,1.8083]
[1757760522218,15.95208268,4713.4,4713.3,0.3066]
[1757760524029,15.95208268,4713.4,4713.3,1.8083]
[1757760524221,15.95208268,4713.4,4713.3,0.3066]
[1757760526716,12.42608268,4713.4,4713.3,0.3066]
[1757760526929,15.95208268,4713.4,4713.3,1.7675]
[1757760528500,16.52043079,4713.4,4713.3,1.7613]
[1757760528998,12.99443079,4713.4,4713.3,1.7613]
[1757760529203,16.52043079,4713.4,4713.3,1.7613]
[1757760530032,6.51247196,4713.4,4713.3,1.7613]
[1757760530305,9.58348651,4713.4,4713.3,1.7613]
[1757760530819,10.03847196,4713.4,4713.3,1.7613]
[1757760531137,5.37103153,4713.4,4713.3,1.7613]
[1757760531302,8.44204608,4713.4,4713.3,1.7613]
[1757760531500,6.21304608,4713.4,4713.3,1.7613]
[1757760531917,4.58604608,4713.4,4713.3,1.7613]
[1757760532324,1.42871218,4713.4,4713.3,1.7613]
[1757760532525,4.95471218,4713.4,4713.3,1.7613]
[1757760537447,3.53,4714.0,4713.3,1.7613]
[1757760537751,3.55116552,4713.9,4713.4,1.4882]
[1757760537951,3.53,4713.8,4713.3,0.001]
[1757760538151,0.81316552,4713.7,4713.5,1.4882]
[1757760538355,0.81316552,4713.7,4713.6,1.4882]
[1757760538656,0.81316552,4713.7,4713.6,1.7917]
[1757760539154,1.4496089,4713.7,4713.6,1.7917]
[1757760539354,1.88392545,4713.7,4713.6,1.3526]
[1757760539557,1.88392545,4713.7,4713.6,1.7917]
[1757760539754,1.88392545,4713.7,4713.6,0.3035]
[1757760540257,1.88392545,4713.7,4713.6,1.7917]
[1757760540956,1.4496089,4713.7,4713.6,1.7917]
[1757760546480,0.6576089,4713.7,4713.6,1.7917]
[1757760552346,0.6576089,4713.7,4713.6,1.3526]
[1757760553187,0.6576089,4713.7,4713.6,1.7917]
[1757760556192,0.6576089,4713.7,4713.6,0.2995]
[1757760557876,0.6576089,4713.7,4713.6,0.3005]
[1757760558301,2.8896089,4713.7,4713.6,0.3005]
[1757760558612,0.6576089,4713.7,4713.6,0.3005]
[1757760559110,0.6576089,4713.7,4713.6,1.8399]
[1757760560078,0.6576089,4713.7,4713.6,1.3848]
[1757760561605,0.6576089,4713.7,4713.6,1.8399]
[1757760562217,0.6576089,4713.7,4713.6,0.3005]
[1757760562985,0.6576089,4713.7,4713.6,1.8399]
[1757760563308,0.6576089,4713.7,4713.6,0.3005]
[1757760564923,0.6576089,4713.7,4713.6,1.8399]
[1757760565288,0.6576089,4713.7,4713.6,0.3005]
[1757760573203,1.11926979,4713.7,4713.6,0.3005]
[1757760580628,1.43126979,4713.7,4713.6,0.001]
[1757760580873,1.86526979,4713.7,4713.6,0.001]
[1757760581256,1.43126979,4713.7,4713.6,0.001]
[1757760582880,1.11926979,4713.7,4713.6,0.001]
[1757760583037,1.11926979,4713.7,4713.6,0.3005]
[1757760585464,1.11926979,4713.7,4713.6,1.2954]
[1757760585465,0.63644338,4713.7,4713.6,1.2954]
[1757760585756,0.002,4714.5,4713.6,1.7535]
[1757760585963,0.63631514,4714.2,4713.7,1.453]
[1757760586256,0.63631514,4714.2,4714.1,0.2916]
[1757760586460,0.63631514,4714.2,4714.1,1.7446]
[1757760591663,0.63631514,4714.2,4714.1,1.7456]
[1757760596864,0.63631514,4714.2,4714.1,0.2926]
[1757760597036,0.94641514,4714.2,4714.1,0.001]
[1757760600254,3.40661321,4714.2,4714.1,0.001]
[1757760600770,1.66811321,4714.2,4714.1,0.001]
[1757760600939,1.42831514,4714.2,4714.1,0.2979]
[1757760602953,1.42831514,4714.2,4714.1,0.001]
[1757760603952,2.69901514,4714.2,4714.1,0.001]
[1757760604273,3.16681514,4714.2,4714.1,0.001]
[1757760604679,3.48581321,4714.2,4714.1,0.001]
[1757760616587,9.26197873,4714.2,4714.1,0.001]
[1757760616889,9.24081321,4714.2,4714.1,0.001]
[1757760622662,8.77301321,4714.2,4714.1,0.001]
[1757760622864,9.22821321,4714.2,4714.1,0.001]
[1757760630704,11.34946389,4714.2,4714.1,0.001]
[1757760631213,9.22821321,4714.2,4714.1,0.001]
[1757760631707,11.34946389,4714.2,4714.1,0.001]
[1757760641435,9.93366389,4714.2,4714.1,0.001]
[1757760641949,10.38886389,4714.2,4714.1,0.001]
[1757760642114,10.89476389,4714.2,4714.1,0.001]
[1757760642304,11.8043897,4714.2,4714.1,0.001]
[1757760642816,11.34996389,4714.2,4714.1,0.001]
[1757760643017,9.93366389,4714.2,4714.1,0.001]
[1757760643724,10.38886389,4714.2,4714.1,0.001]
[1757760646017,9.93366389,4714.2,4714.1,0.001]
[1757760646549,9.62356389,4714.2,4714.1,0.001]
[1757760647727,7.50231321,4714.2,4714.1,0.2921]
[1757760647930,7.50231321,4714.2,4714.1,1.2321]
[1757760648136,9.62356389,4714.2,4714.1,1.6611]
[1757760648650,9.93876389,4714.2,4714.1,0.001]
[1757760650844,9.62356389,4714.2,4714.1,0.001]
[1757760652810,11.32866389,4714.2,4714.1,0.001]
[1757760653010,11.7831611,4714.2,4714.1,0.001]
[1757760653433,10.8231611,4714.2,4714.1,0.001]
[1757760653715,10.36866389,4714.2,4714.1,0.001]
[1757760653938,10.87856389,4714.2,4714.1,0.001]
[1757760654143,11.7831611,4714.2,4714.1,0.001]
[1757760661572,10.3730611,4714.2,4714.1,0.001]
[1757760661774,10.0780611,4714.2,4714.1,0.2991]
[1757760661973,10.0780611,4714.2,4714.1,0.001]
[1757760662178,10.0780611,4714.2,4714.1,1.7631]
[1757760662348,10.0780611,4714.2,4714.1,0.2991]
[1757760663279,10.0780611,4714.2,4714.1,0.001]
[1757760663445,10.0780611,4714.2,4714.1,0.2991]
[1757760664181,10.0780611,4714.2,4714.1,0.001]
[1757760666876,9.62356389,4714.2,4714.1,0.001]
[1757760667074,10.0780611,4714.2,4714.1,0.001]
[1757760667385,9.62356389,4714.2,4714.1,0.001]
[1757760667582,10.07905251,4714.2,4714.1,0.001]
[1757760667885,9.62356389,4714.2,4714.1,0.001]
[1757760668087,10.07905251,4714.2,4714.1,0.001]
[1757760668293,9.62356389,4714.2,4714.1,0.001]
[1757760668587,10.07905251,4714.2,4714.1,0.001]
[1757760668755,9.62356389,4714.2,4714.1,0.001]
[1757760668952,10.07905251,4714.2,4714.1,0.001]
[1757760669167,9.62356389,4714.2,4714.1,0.001]
[1757760669365,10.07905251,4714.2,4714.1,0.001]
[1757760669564,9.91856389,4714.2,4714.1,0.001]
[1757760669766,10.37405251,4714.2,4714.1,0.001]
[1757760670085,9.91856389,4714.2,4714.1,0.001]
[1757760670384,11.78415251,4714.2,4714.1,0.001]
[1757760679835,11.33405251,4714.2,4714.1,0.001]
[1757760680131,11.78205251,4714.2,4714.1,0.001]
[1757760683416,11.33405251,4714.2,4714.1,0.001]
[1757760683617,11.78205251,4714.2,4714.1,0.001]
[1757760685450,10.82205251,4714.2,4714.1,0.001]
[1757760686048,10.07905251,4714.2,4714.1,0.001]
[1757760686352,10.07905251,4714.2,4714.1,0.3153]
[1757760687131,10.07905251,4714.2,4714.1,1.2367]
[1757760687323,10.07905251,4714.2,4714.1,1.6785]
[1757760687740,10.07905251,4714.2,4714.1,0.3153]
[1757760688742,11.70705251,4714.2,4714.1,0.3153]
[1757760691455,13.40145251,4714.2,4714.1,0.001]
[1757760691663,11.99735251,4714.2,4714.1,0.001]
[1757760694932,11.70705251,4714.2,4714.1,0.001]
[1757760695157,11.70705251,4714.2,4714.1,0.3153]
[1757760697159,11.70705251,4714.2,4714.1,0.001]
[1757760698065,11.70705251,4714.2,4714.1,0.3153]
[1757760698561,8.18405251,4714.2,4714.1,0.3153]
[1757760698762,11.70605251,4714.2,4714.1,0.001]
[1757760701460,11.70605251,4714.2,4714.1,0.3153]
[1757760702665,11.70605251,4714.2,4714.1,0.001]
[1757760702864,11.99635251,4714.2,4714.1,0.001]
[1757760706658,11.70605251,4714.2,4714.1,0.001]
[1757760706856,3.024,4713.7,4713.6,0.001]
[1757760707061,9.26296431,4713.7,4713.6,0.001]
[1757760707371,10.34177569,4713.7,4713.6,0.001]
[1757760707572,10.79726431,4713.7,4713.6,0.001]
[1757760707744,10.93726431,4713.7,4713.6,0.001]
[1757760707941,12.93927492,4713.7,4713.6,0.001]
[1757760708154,13.02416141,4713.7,4713.6,0.001]
[1757760708466,12.88416141,4713.7,4713.6,0.001]
[1757760712015,18.60363131,4713.7,4713.6,0.001]
[1757760712215,19.17224609,4713.7,4713.6,0.001]
[1757760712774,5.14561072,4713.4,4713.3,0.001]
[1757760712999,12.56566991,4713.4,4713.3,0.001]
[1757760713303,14.68898287,4713.4,4713.3,0.001]
[1757760713505,14.77387657,4713.4,4713.3,0.001]
[1757760715392,14.30097657,4713.4,4713.3,0.001]
[1757760715596,14.77387657,4713.4,4713.3,0.001]
[1757760720634,13.87857657,4713.4,4713.3,0.001]
[1757760720830,13.10487657,4713.4,4713.3,1.7137]
[1757760721914,7.35087657,4713.4,4713.3,1.7137]
[1757760722115,4.3988937,4713.4,4713.3,1.7137]
[1757760722323,4.3988937,4713.4,4713.3,1.2406]
[1757760722555,6.52050442,4713.4,4713.3,1.7137]
[1757760723809,0.0848937,4713.4,4713.3,1.7137]
[1757760724008,3.6068937,4713.4,4713.3,1.7137]
[1757760724313,4.3988937,4713.4,4713.3,1.7137]
[1757760726837,4.3988937,4713.4,4713.3,0.3143]
[1757760727140,5.05305023,4713.4,4713.3,0.001]
[1757760727515,7.17466095,4713.4,4713.3,0.001]
[1757760727933,7.47546095,4713.4,4713.3,0.001]
[1757760728336,8.84366095,4713.4,4713.3,0.001]
[1757760728930,7.94836095,4713.4,4713.3,0.001]
[1757760729930,9.57636095,4713.4,4713.3,0.001]
[1757760730329,15.70366095,4713.4,4713.3,0.001]
[1757760730616,16.15711639,4713.4,4713.3,0.001]
[1757760733030,11.26691639,4713.4,4713.3,0.001]
[1757760733221,14.48711639,4713.4,4713.3,0.001]
[1757760733424,14.78791639,4713.4,4713.3,0.001]
[1757760734860,16.15611639,4713.4,4713.3,0.001]
[1757760735065,11.26691639,4713.4,4713.3,0.001]
[1757760735239,14.78791639,4713.4,4713.3,0.001]
[1757760736757,14.48711639,4713.4,4713.3,0.001]
[1757760736923,10.96611639,4713.4,4713.3,0.001]
[1757760737260,10.96611639,4713.4,4713.3,0.3076]
[1757760737439,14.48711639,4713.4,4713.3,0.3076]
[1757760737755,14.48711639,4713.4,4713.3,0.001]
[1757760738830,14.78811639,4713.4,4713.3,0.001]
[1757760741228,14.48711639,4713.4,4713.3,0.001]
[1757760741455,14.48711639,4713.4,4713.3,0.3076]
[1757760743359,12.25511639,4713.4,4713.3,0.001]
[1757760744491,12.25511639,4713.4,4713.3,0.3076]
[1757760745660,12.25511639,4713.4,4713.3,0.001]
[1757760745860,12.55271639,4713.4,4713.3,0.001]
[1757760746073,13.00961639,4713.4,4713.3,0.001]
[1757760746271,12.55271639,4713.4,4713.3,0.001]
[1757760751042,12.25511639,4713.4,4713.3,0.2949]
[1757760752288,12.25511639,4713.4,4713.3,0.001]
[1757760754455,12.25511639,4713.4,4713.3,0.2949]
[1757760755555,5.73411639,4713.4,4713.3,0.2949]
[1757760755873,8.80166095,4713.4,4713.3,0.2949]
[1757760756052,9.09926095,4713.4,4713.3,0.001]
[1757760756229,9.55616095,4713.4,4713.3,0.001]
[1757760757271,9.09926095,4713.4,4713.3,0.001]
[1757760759559,8.80166095,4713.4,4713.3,0.001]
[1757760759837,8.80166095,4713.4,4713.3,0.2949]
[1757760760269,8.80166095,4713.4,4713.3,1.1718]
[1757760760569,8.80166095,4713.4,4713.3,1.6244]
[1757760760891,11.03366095,4713.4,4713.3,1.1718]
[1757760761094,9.25511639,4713.4,4713.3,1.1718]
[1757760761423,8.80166095,4713.4,4713.3,0.2949]
[1757760763961,5.28066095,4713.4,4713.3,0.2949]
[1757760764164,6.68005023,4713.4,4713.3,1.6244]
[1757760765097,2.5048937,4713.4,4713.3,1.1718]
[1757760765305,6.0258937,4713.4,4713.3,1.6244]
[1757760769094,6.0258937,4713.4,4713.3,0.3033]
[1757760769405,8.14750442,4713.4,4713.3,0.3033]
[1757760769894,8.14750442,4713.4,4713.3,0.001]
[1757760769895,8.46240442,4713.4,4713.3,0.001]
[1757760770097,9.66114133,4713.4,4713.3,0.001]
[1757760771524,10.11484133,4713.4,4713.3,0.001]
[1757760771719,9.66114133,4713.4,4713.3,0.001]
[1757760771925,7.53953061,4713.4,4713.3,0.001]
[1757760772707,9.66114133,4713.4,4713.3,0.001]
[1757760776137,7.53953061,4713.4,4713.3,0.001]
[1757760777636,7.22463061,4713.4,4713.3,0.001]
[1757760778132,7.22463061,4713.4,4713.3,1.6817]
[1757760779335,7.22463061,4713.4,4713.3,1.2195]
[1757760779506,7.22463061,4713.4,4713.3,0.2938]
[1757760784115,9.34624133,4713.4,4713.3,0.2938]
[1757760784324,9.34624133,4713.4,4713.3,0.001]
[1757760785335,9.65484133,4713.4,4713.3,0.001]
[1757760786541,11.04144133,4713.4,4713.3,0.001]
[1757760790408,7.22463061,4713.4,4713.3,0.2938]
[1757760790611,10.10854133,4713.4,4713.3,0.001]
[1757760790951,11.04144133,4713.4,4713.3,0.001]
[1757760791367,10.10854133,4713.4,4713.3,0.001]
[1757760791649,11.04144133,4713.4,4713.3,0.001]
[1757760792860,11.49561178,4713.4,4713.3,0.001]
[1757760796161,11.49561178,4713.4,4712.5,0.9257]
[1757760796162,0.792,4713.2,4711.3,0.8742]
[1757760796353,2.91406094,4712.4,4709.2,1.628]
[1757760796518,11.84759691,4712.4,4710.7,1.3403]
[1757760796841,13.18393139,4712.4,4710.7,1.3403]
[1757760797412,13.26884563,4712.4,4710.9,0.4661]
[1757760797612,15.19698023,4712.4,4710.9,0.4661]
[1757760797846,15.19698023,4712.4,4711.2,0.8742]
[1757760798217,15.19698023,4712.4,4711.4,0.4671]
[1757760798617,13.83948023,4712.4,4711.5,0.8742]
[1757760798848,13.83948023,4712.4,4711.7,0.4661]
[1757760800144,15.19698023,4712.4,4711.5,0.8742]
[1757760800351,14.74280978,4712.4,4711.5,0.8742]
[1757760800542,14.74280978,4712.4,4711.6,0.4671]
[1757760801744,9.86230978,4712.4,4711.6,0.001]
[1757760801937,13.38530978,4712.4,4711.6,0.4671]
[1757760802139,13.85500978,4712.4,4711.6,0.4671]
[1757760803445,10.33200978,4712.4,4711.6,0.4671]
[1757760803650,13.38530978,4712.4,4711.6,0.4671]
[1757760803845,13.38530978,4712.4,4711.8,0.8752]
[1757760803846,13.07810978,4712.4,4711.8,0.8752]
[1757760804013,13.07810978,4712.4,4711.8,1.3413]
[1757760804618,13.50212667,4712.4,4711.8,1.3413]
[1757760804940,13.50212667,4712.4,4712.3,0.3008]
[1757760805135,9.97912667,4712.4,4712.3,0.3008]
[1757760805351,13.50212667,4712.4,4712.3,0.3008]
[1757760806757,13.50212667,4712.4,4712.3,0.001]
[1757760807151,9.97912667,4712.4,4712.3,0.001]
[1757760807351,13.50212667,4712.4,4712.3,0.001]
[1757760808248,7.85706573,4712.4,4712.3,0.3008]
[1757760808453,6.45193113,4712.4,4712.3,1.6411]
[1757760809161,2.92893113,4712.4,4712.3,1.6411]
[1757760809368,6.45193113,4712.4,4712.3,1.6411]
[1757760810034,8.57399207,4712.4,4712.3,1.6411]
[1757760810869,8.57399207,4712.4,4712.3,0.3008]
[1757760811160,9.64378864,4712.4,4712.3,0.3008]
[1757760811971,3.9987277,4712.4,4712.3,1.175]
[1757760812265,5.65893113,4712.4,4712.3,1.6411]
[1757760812479,0.08491424,4712.4,4712.3,1.6411]
[1757760812657,3.60791424,4712.4,4712.3,1.6411]
[1757760813059,4.39991424,4712.4,4712.3,1.6411]
[1757760813861,3.60791424,4712.4,4712.3,1.6411]
[1757760814166,4.39991424,4712.4,4712.3,1.6411]
[1757760814760,3.60791424,4712.4,4712.3,1.6411]
[1757760814944,4.39991424,4712.4,4712.3,1.6411]